bitfinex/quotes_BTCUSD_20250505
["timestamp","ask_amount","ask_price","bid_price","bid_amount"]
[1746489032687,0.0522405,95020.0,95019.0,0.02112475]
[1746489032870,0.0673405,95020.0,95019.0,0.02112475]
[1746489035333,0.06738132,95020.0,95019.0,0.02112475]
[1746489036084,0.06738132,95020.0,95013.0,0.01052487]
[1746489036085,0.01052432,95018.0,95013.0,0.01052487]
[1746489036512,0.01967459,95017.0,95014.0,0.02012233]
[1746489036959,0.01967459,95016.0,95014.0,0.02012233]
[1746489037136,0.01967459,95016.0,95014.0,0.23061684]
[1746489037543,0.01967459,95015.0,95014.0,0.23061684]
[1746489037845,0.01967459,95015.0,95014.0,0.23161684]
[1746489038053,0.05217459,95015.0,95014.0,0.02112233]
[1746489038370,0.05217459,95015.0,95014.0,0.01907138]
[1746489038573,0.05217459,95015.0,95014.0,0.002]
[1746489038737,0.05217459,95015.0,95014.0,0.003]
[1746489039487,0.05217459,95015.0,95014.0,0.002]
[1746489039637,0.22102005,95014.0,95011.0,0.004]
[1746489039839,0.25142005,95014.0,95011.0,0.004]
[1746489040043,0.21049751,95013.0,95012.0,0.02012648]
[1746489040442,0.2301721,95013.0,95012.0,0.02012648]
[1746489041480,0.2301721,95013.0,95012.0,0.02212648]
[1746489042287,0.2301721,95013.0,95012.0,0.004]
[1746489042494,0.2301721,95013.0,95012.0,0.02412648]
[1746489043864,0.03031837,95013.0,95012.0,0.02412648]
[1746489045710,0.04581837,95013.0,95012.0,0.02412648]
[1746489046008,0.06322235,95013.0,95012.0,0.02412648]
[1746489046228,0.06322235,95013.0,95012.0,0.004]
[1746489046743,0.06322235,95013.0,95012.0,0.002]
[1746489047109,0.06322235,95013.0,95012.0,0.003]
[1746489047612,0.06111837,95013.0,95012.0,0.001]
[1746489047780,0.06111837,95013.0,95012.0,0.002]
[1746489047978,0.06322235,95013.0,95012.0,0.002]
[1746489049924,0.07973024,95013.0,95012.0,0.002]
[1746489051130,0.43427109,95013.0,95012.0,0.002]
[1746489051335,0.43216711,95013.0,95012.0,0.001]
[1746489051532,0.93216711,95013.0,95012.0,0.001]
[1746489051735,0.56504057,95012.0,95011.0,0.004]
[1746489052042,0.59574057,95012.0,95011.0,0.004]
[1746489052562,0.61541516,95012.0,95011.0,0.004]
[1746489053930,1.11541516,95012.0,95011.0,0.004]
[1746489054071,1.21728431,95012.0,95011.0,0.004]
[1746489055093,1.11541516,95012.0,95011.0,0.004]
[1746489059865,1.1319247,95012.0,95011.0,0.004]
[1746489066713,1.11541516,95012.0,95011.0,0.004]
[1746489067719,1.11737476,95012.0,95011.0,0.004]
[1746489069616,1.11737476,95012.0,95011.0,0.00293352]
[1746489069821,1.13388461,95012.0,95011.0,0.00293352]
[1746489072564,1.13388789,95012.0,95011.0,0.00293352]
[1746489072791,1.23940818,95012.0,95011.0,0.00293352]
[1746489073340,0.0326,95009.0,95000.0,0.03054]
[1746489073541,0.56506494,95001.0,95000.0,0.03054]
[1746489073750,0.68193806,95001.0,95000.0,0.03054]
[1746489073949,0.68193806,95001.0,94991.0,0.004]
[1746489073950,0.58314404,94992.0,94991.0,0.004]
[1746489074197,0.61732236,94992.0,94991.0,0.004]
[1746489075095,1.11742202,94992.0,94991.0,0.004]
[1746489075528,1.11942202,94992.0,94991.0,0.004]
[1746489076482,1.07228117,94992.0,94991.0,0.004]
[1746489077181,1.10478117,94992.0,94991.0,0.004]
[1746489077816,0.60478117,94992.0,94991.0,0.004]
[1746489078032,0.58828117,94992.0,94991.0,0.004]
[1746489078249,0.57228117,94992.0,94991.0,0.004]
[1746489081054,0.58879407,94992.0,94991.0,0.004]
[1746489084112,0.61979407,94992.0,94991.0,0.004]
[1746489085980,0.60389407,94992.0,94991.0,0.004]
[1746489086203,0.62019407,94992.0,94991.0,0.004]
[1746489086846,0.60368117,94992.0,94991.0,0.004]
[1746489089841,0.62019408,94992.0,94991.0,0.004]
[1746489095390,0.61519408,94992.0,94991.0,0.004]
[1746489096212,0.59868117,94992.0,94991.0,0.004]
[1746489097366,0.59868117,94992.0,94991.0,0.00227708]
[1746489099567,0.61519636,94992.0,94991.0,0.00227708]
[1746489106729,0.59868117,94992.0,94991.0,0.00227708]
[1746489107076,0.61322202,94992.0,94991.0,0.00227708]
[1746489107464,1.11322202,94992.0,94991.0,0.00227708]
[1746489107667,1.20102099,94992.0,94991.0,0.00227708]
[1746489108124,1.11322202,94992.0,94991.0,0.00227708]
[1746489108756,1.14271931,94992.0,94991.0,0.00227708]
[1746489108930,1.17519927,94992.0,94991.0,0.00227708]
[1746489109470,1.14271931,94992.0,94991.0,0.00227708]
[1746489109858,1.34271931,94992.0,94991.0,0.00227708]
[1746489110300,1.38318828,94992.0,94991.0,0.00227708]
[1746489111049,1.35828736,94992.0,94991.0,0.00227708]
[1746489113497,1.82474651,94992.0,94991.0,0.00227708]
[1746489113656,1.23555263,94992.0,94991.0,0.00227708]
[1746489113861,1.57555263,94992.0,94991.0,0.02372173]
[1746489114094,1.57555263,94992.0,94991.0,0.00227708]
[1746489114095,1.65387344,94992.0,94991.0,0.00227708]
[1746489114272,1.25939373,94992.0,94991.0,0.00227708]
[1746489114853,1.28886865,94992.0,94991.0,0.00327708]
[1746489115253,1.28686865,94992.0,94991.0,0.00227708]
[1746489115457,1.28786865,94992.0,94991.0,0.00227708]
[1746489115659,1.8498684,94992.0,94991.0,0.00227708]
[1746489116844,1.8323529,94992.0,94991.0,0.00227708]
[1746489117157,1.8333529,94992.0,94991.0,0.00227708]
[1746489117357,1.8323529,94992.0,94991.0,0.00227708]
[1746489117567,1.8333529,94992.0,94991.0,0.00227708]
[1746489117764,1.8353529,94992.0,94991.0,0.00227708]
[1746489118369,1.87389651,94992.0,94991.0,0.00227708]
[1746489118749,1.8353529,94992.0,94991.0,0.00227708]
[1746489120327,1.8353529,94992.0,94955.0,0.0157]
[1746489120328,0.56512923,94972.0,94955.0,0.0157]
[1746489120462,0.56512923,94972.0,94951.0,0.004]
[1746489120463,0.59752923,94972.0,94951.0,0.004]
[1746489120656,0.6171667,94972.0,94951.0,0.01453174]
[1746489120854,0.64661922,94972.0,94951.0,0.01453174]
[1746489121064,0.6171667,94972.0,94951.0,0.01453174]
[1746489121264,0.6171667,94972.0,94952.0,0.22116404]
[1746489121265,0.63368457,94972.0,94952.0,0.22116404]
[1746489121465,0.60128457,94972.0,94971.0,0.006]
[1746489121673,1.10128457,94972.0,94971.0,0.007]
[1746489122389,1.23760486,94972.0,94971.0,0.007]
[1746489122594,1.13208457,94972.0,94971.0,0.007]
[1746489123892,1.82938457,94972.0,94971.0,0.007]
[1746489124090,1.85880468,94972.0,94971.0,0.007]
[1746489124684,1.82938457,94972.0,94971.0,0.007]
[1746489124912,1.99858457,94972.0,94971.0,0.005]
[1746489125120,1.99858457,94972.0,94971.0,0.004]
[1746489125347,1.99958457,94972.0,94971.0,0.004]
[1746489125890,1.79958457,94972.0,94971.0,0.004]
[1746489126534,1.7820667,94972.0,94971.0,0.004]
[1746489126651,1.7830667,94972.0,94971.0,0.004]
[1746489126857,0.01454085,94971.0,94970.0,0.0113655]
[1746489127535,0.13969861,94971.0,94970.0,0.0113655]
[1746489127737,0.0679823,94971.0,94970.0,0.0113655]
[1746489128099,0.0699823,94971.0,94970.0,0.0113655]
[1746489128297,0.0709823,94971.0,94970.0,0.0113655]
[1746489130897,0.2392823,94971.0,94970.0,0.0113655]
[1746489131143,0.25369596,94971.0,94970.0,0.0113655]
[1746489131358,0.75369596,94971.0,94970.0,0.0113655]
[1746489131574,0.55369596,94971.0,94970.0,0.0113655]
[1746489133613,0.37915511,94971.0,94970.0,0.0113655]
[1746489134064,0.37915511,94971.0,94970.0,0.0043655]
[1746489135690,0.37815511,94971.0,94970.0,0.0043655]
[1746489135882,0.37615511,94971.0,94970.0,0.0043655]
[1746489136177,0.37715511,94971.0,94970.0,0.0043655]
[1746489136740,0.36063747,94971.0,94970.0,0.0043655]
[1746489138456,0.51219861,94971.0,94970.0,0.0043655]
[1746489139097,0.90667832,94971.0,94970.0,0.0043655]
[1746489141022,1.60397832,94971.0,94970.0,0.0043655]
[1746489141494,1.62049608,94971.0,94970.0,0.0043655]
[1746489144162,1.58899608,94971.0,94970.0,0.0043655]
[1746489145529,1.62089608,94971.0,94970.0,0.0043655]
[1746489146743,1.60437832,94971.0,94970.0,0.0043655]
[1746489148259,1.70989861,94971.0,94970.0,0.0043655]
[1746489148776,1.60437832,94971.0,94970.0,0.0043655]
[1746489149526,1.6338124,94971.0,94970.0,0.0043655]
[1746489149767,1.65033033,94971.0,94970.0,0.0043655]
[1746489150430,1.60469625,94971.0,94970.0,0.0043655]
[1746489150573,1.58899625,94971.0,94970.0,0.0043655]
[1746489150780,1.61843494,94971.0,94970.0,0.0043655]
[1746489155607,1.63503494,94971.0,94970.0,0.0043655]
[1746489156873,1.61851701,94971.0,94970.0,0.0043655]
[1746489157083,1.63451701,94971.0,94970.0,0.0043655]
[1746489159860,1.65103487,94971.0,94970.0,0.0043655]
[1746489160798,1.63503487,94971.0,94970.0,0.0043655]
[1746489163156,1.61843487,94971.0,94970.0,0.0043655]
[1746489166735,1.60191701,94971.0,94970.0,0.0043655]
[1746489167479,1.61701701,94971.0,94970.0,0.0043655]
[1746489169129,1.60191701,94971.0,94970.0,0.0043655]
[1746489169323,1.60191701,94971.0,94970.0,0.00424748]
[1746489169944,1.61843479,94971.0,94970.0,0.00424748]
[1746489170419,1.63423479,94971.0,94970.0,0.00424748]
[1746489170718,1.65033479,94971.0,94970.0,0.00424748]
[1746489170920,1.61843479,94971.0,94970.0,0.00424748]
[1746489176741,1.60389394,94971.0,94970.0,0.00424748]
[1746489176946,1.58737616,94971.0,94970.0,0.00424748]
[1746489178146,1.08737616,94971.0,94970.0,0.00424748]
[1746489179808,1.10389377,94971.0,94970.0,0.00424748]
[1746489183734,0.01053074,94960.0,94956.0,0.21062353]
[1746489184139,0.01963747,94959.0,94957.0,0.02182332]
[1746489184540,0.01963747,94958.0,94957.0,0.02182332]
[1746489184906,0.01973239,94958.0,94957.0,0.02182332]
[1746489185124,0.01973239,94958.0,94957.0,0.02382332]
[1746489185731,0.01973239,94958.0,94957.0,0.02582332]
[1746489187158,0.01973239,94958.0,94957.0,0.006]
[1746489187159,0.24565182,94958.0,94957.0,0.006]
[1746489187640,0.01973239,94958.0,94957.0,0.006]
[1746489188028,0.01973239,94958.0,94957.0,0.23843744]
[1746489188232,0.01973239,94958.0,94957.0,0.21979894]
[1746489188431,0.01973239,94958.0,94957.0,0.23539894]
[1746489189613,0.01973239,94958.0,94957.0,0.25099894]
[1746489191169,0.03625016,94958.0,94957.0,0.25099894]
[1746489191730,0.03625016,94958.0,94957.0,0.23539894]
[1746489194854,0.03625016,94958.0,94957.0,0.21979894]
[1746489196557,0.01973239,94958.0,94957.0,0.21979894]
[1746489198125,0.01973239,94958.0,94957.0,0.23843744]
[1746489200136,0.03624979,94958.0,94957.0,0.23843744]
[1746489206231,0.01661232,94958.0,94957.0,0.23843744]
[1746489206648,9.492e-05,94958.0,94957.0,0.23843744]
[1746489210074,0.01661219,94958.0,94957.0,0.23843744]
[1746489216675,9.492e-05,94958.0,94957.0,0.23843744]
[1746489219968,0.01661188,94958.0,94957.0,0.23843744]
[1746489220160,0.01661188,94958.0,94957.0,0.23643744]
[1746489220951,0.01661188,94958.0,94957.0,0.23243744]
[1746489221337,0.01661188,94958.0,94957.0,0.23843744]
[1746489222123,0.01661188,94958.0,94957.0,0.24243744]
[1746489223437,9.492e-05,94958.0,94957.0,0.24243744]
[1746489223638,0.01661215,94958.0,94957.0,0.24243744]
[1746489226739,9.492e-05,94958.0,94957.0,0.24243744]
[1746489231368,0.01661222,94958.0,94957.0,0.24243744]
[1746489234234,0.03161222,94958.0,94957.0,0.24243744]
[1746489235165,0.01661222,94958.0,94957.0,0.24243744]
[1746489236737,9.492e-05,94958.0,94957.0,0.24243744]
[1746489238571,0.01619492,94958.0,94957.0,0.24243744]
[1746489239739,0.03199492,94958.0,94957.0,0.0318158]
[1746489240086,0.03199492,94958.0,94957.0,0.24243744]
[1746489241006,0.04851254,94958.0,94957.0,0.23243744]
[1746489241410,0.04851254,94958.0,94957.0,0.0288158]
[1746489246698,0.03199492,94958.0,94957.0,0.0288158]
[1746489249625,0.03199492,94958.0,94957.0,0.007]
[1746489250196,0.05164843,94958.0,94957.0,0.007]
[1746489250935,0.05164843,94958.0,94957.0,0.003]
[1746489251131,0.0105313,94955.0,94951.0,0.22516488]
[1746489251363,0.0312,94954.0,94951.0,0.22516488]
[1746489251593,0.0312,94953.0,94952.0,0.02176785]
[1746489251745,0.05085351,94953.0,94952.0,0.02176785]
[1746489253525,0.05085351,94953.0,94952.0,0.02376785]
[1746489254154,0.05085351,94953.0,94952.0,0.02676785]
[1746489259342,0.03575351,94953.0,94952.0,0.02676785]
[1746489259694,0.01965351,94953.0,94952.0,0.02676785]
[1746489260238,0.03585351,94953.0,94952.0,0.02676785]
[1746489261375,0.05237151,94953.0,94952.0,0.02676785]
[1746489266700,0.03585351,94953.0,94952.0,0.02676785]
[1746489271288,0.0523714,94953.0,94952.0,0.02676785]
[1746489271972,0.0675714,94953.0,94952.0,0.02676785]
[1746489275885,0.05105351,94953.0,94952.0,0.02676785]
[1746489280187,0.06757193,94953.0,94952.0,0.02676785]
[1746489284581,0.06757193,94953.0,94952.0,0.23740059]
[1746489284582,0.05237193,94953.0,94952.0,0.23740059]
[1746489284779,0.03617193,94953.0,94952.0,0.23740059]
[1746489286821,0.01965351,94953.0,94952.0,0.23740059]
[1746489289776,0.03617173,94953.0,94952.0,0.23740059]
[1746489294447,0.03617173,94953.0,94952.0,0.23440059]
[1746489294878,0.03617173,94953.0,94952.0,0.23840059]
[1746489295281,0.03617173,94953.0,94952.0,0.23640059]
[1746489295607,0.03617173,94953.0,94952.0,0.24040059]
[1746489296807,0.01965351,94953.0,94952.0,0.24040059]
[1746489299995,0.03617151,94953.0,94952.0,0.24040059]
[1746489306728,0.01965351,94953.0,94952.0,0.24040059]
[1746489307626,9.492e-05,94958.0,94957.0,0.21062164]
[1746489307829,0.01649492,94958.0,94957.0,0.21062164]
[1746489308041,0.01649492,94958.0,94957.0,0.23236647]
[1746489308813,0.01649492,94958.0,94957.0,0.23436647]
[1746489309195,9.492e-05,94958.0,94957.0,0.23436647]
[1746489309662,9.492e-05,94958.0,94957.0,0.23636647]
[1746489310068,0.01661208,94958.0,94957.0,0.23636647]
[1746489316873,9.492e-05,94958.0,94957.0,0.23636647]
[1746489319740,0.01661188,94958.0,94957.0,0.23636647]
[1746489323600,0.01661188,94958.0,94957.0,0.25246647]
[1746489323794,0.01661188,94958.0,94957.0,0.26836647]
[1746489324107,0.01661188,94958.0,94957.0,5.31836647]
[1746489324517,0.01661188,94958.0,94957.0,5.31636647]
[1746489324717,0.01761188,94958.0,94957.0,5.32036647]
[1746489325180,0.01761188,94958.0,94957.0,5.32831447]
[1746489325394,0.01761188,94958.0,94957.0,5.33231447]
[1746489325582,0.00109492,94958.0,94957.0,5.33231447]
[1746489325946,0.00109492,94958.0,94957.0,5.32831447]
[1746489326190,0.00109492,94958.0,94957.0,5.33431447]
[1746489339824,0.0152,94976.0,94975.0,0.21058173]
[1746489339998,0.0164,94985.0,94975.0,0.21103392]
[1746489340372,0.0164,94985.0,94984.0,0.21056177]
[1746489340490,0.0321,94985.0,94984.0,0.21056177]
[1746489341127,0.04961325,94985.0,94984.0,0.21056177]
[1746489341356,0.05061325,94985.0,94984.0,0.21056177]
[1746489341556,0.04961325,94985.0,94984.0,0.21056177]
[1746489341751,0.05061325,94985.0,94984.0,0.21056177]
[1746489341960,0.05161325,94985.0,94984.0,0.21056177]
[1746489343722,0.05161325,94985.0,94984.0,0.2136792]
[1746489346739,0.0351,94985.0,94984.0,0.2136792]
[1746489347955,0.0351,94985.0,94984.0,0.23199069]
[1746489351270,0.05161263,94985.0,94984.0,0.23199069]
[1746489356722,0.0351,94985.0,94984.0,0.23199069]
[1746489356923,0.0194,94985.0,94984.0,0.23199069]
[1746489358246,0.0174,94985.0,94984.0,0.23199069]
[1746489358596,0.0174,94985.0,94984.0,0.23299069]
[1746489359365,0.0164,94985.0,94984.0,0.23299069]
[1746489359719,0.0164,94985.0,94984.0,0.23399069]
[1746489360657,0.0162,94990.0,94989.0,0.21055069]
[1746489360658,0.0314,94990.0,94989.0,0.21055069]
[1746489360855,0.0152,94990.0,94989.0,0.22318347]
[1746489361001,0.0152,94990.0,94989.0,0.2424703]
[1746489362625,0.0306,94997.0,94996.0,0.21053518]
[1746489363089,0.0306,94997.0,94996.0,0.22877252]
[1746489363269,0.0152,94997.0,94996.0,0.22877252]
[1746489363619,0.0154,95004.0,95003.0,0.21051966]
[1746489364378,0.04731037,95004.0,95003.0,0.22874391]
[1746489364588,0.04731037,95004.0,95003.0,0.23181923]
[1746489364787,0.04731037,95004.0,95003.0,0.23081923]
[1746489365842,0.04831037,95004.0,95003.0,0.23081923]
[1746489366800,0.0164,95004.0,95003.0,0.23081923]
[1746489368386,0.0329,95004.0,95003.0,0.23081923]
[1746489369986,0.04940962,95004.0,95003.0,0.23081923]
[1746489375500,0.04940962,95004.0,95003.0,0.22801922]
[1746489375873,0.04940962,95004.0,95003.0,0.21201922]
[1746489376194,0.04940962,95004.0,95003.0,0.20241921]
[1746489376574,0.04940962,95004.0,95003.0,0.1824192]
[1746489376776,0.0329,95004.0,95003.0,0.1824192]
[1746489376986,0.0329,95004.0,95003.0,0.14241919]
[1746489377187,0.0329,95004.0,95003.0,0.13041919]
[1746489379761,0.04941001,95004.0,95003.0,0.13041919]
[1746489386041,0.04941001,95004.0,95003.0,0.11989919]
[1746489386694,0.0329,95004.0,95003.0,0.11989919]
[1746489388463,0.001,95004.0,95003.0,0.11989919]
[1746489390068,0.01650887,95004.0,95003.0,0.11989919]
[1746489390408,0.01650887,95004.0,95003.0,0.12189919]
[1746489391055,0.01650887,95004.0,95003.0,0.12489919]
[1746489392057,0.01650887,95004.0,95003.0,0.12889919]
[1746489396737,0.0165,95015.0,95014.0,0.21049529]
[1746489396937,0.0319,95015.0,95014.0,0.21049529]
[1746489397136,0.0319,95015.0,95014.0,0.23146168]
[1746489397898,0.03203621,95015.0,95014.0,0.23146168]
[1746489398614,0.03203621,95015.0,95014.0,0.23246168]
[1746489399906,0.04854431,95015.0,95014.0,0.23246168]
[1746489406170,0.03203621,95015.0,95014.0,0.23246168]
[1746489411445,0.03203621,95015.0,95014.0,0.02196639]
[1746489411647,0.27489037,95015.0,95014.0,0.02196639]
[1746489411817,0.27489037,95015.0,95014.0,0.001]
[1746489412127,0.24252929,95015.0,95014.0,0.001]
[1746489413906,0.24252929,95015.0,95014.0,0.0218753]
[1746489414104,0.24252929,95015.0,95014.0,0.001]
[1746489416525,0.24252929,95015.0,95014.0,0.0218753]
[1746489416727,0.24252929,95015.0,95014.0,0.001]
[1746489416877,0.24252929,95015.0,95014.0,0.0218753]
[1746489417687,0.24252929,95015.0,95014.0,0.001]
[1746489418754,0.03203621,95015.0,95014.0,0.001]
[1746489419106,0.03203621,95015.0,95014.0,0.0218753]
[1746489420148,0.04854443,95015.0,95014.0,0.0218753]
[1746489423655,0.05064841,95015.0,95014.0,0.0218753]
[1746489424584,0.50894512,95015.0,95014.0,0.0218753]
[1746489424786,0.47448006,95015.0,95014.0,0.0218753]
[1746489424959,0.47448006,95015.0,95014.0,0.001]
[1746489425777,0.97448006,95015.0,95014.0,0.001]
[1746489426255,0.97848006,95015.0,95014.0,0.001]
[1746489426453,0.90708528,95015.0,95014.0,0.001]
[1746489426724,0.89057706,95015.0,95014.0,0.001]
[1746489427135,0.89057706,95015.0,94995.0,0.21053601]
[1746489427136,0.04362653,94998.0,94995.0,0.21053601]
[1746489427466,0.04362653,94998.0,94991.0,0.21054555]
[1746489427467,0.04202686,94995.0,94991.0,0.21054555]
[1746489427640,0.00210398,94995.0,94992.0,0.21054205]
[1746489427785,0.0315,94993.0,94992.0,0.21054205]
[1746489428430,0.0315,94993.0,94992.0,0.21364175]
[1746489429020,0.0315,94993.0,94992.0,0.21564175]
[1746489435714,0.0315,94993.0,94992.0,0.0050997]
[1746489437864,0.0315,94993.0,94992.0,0.02308854]
[1746489444584,0.0315,94993.0,94991.0,0.15144658]
[1746489444732,0.0315,94993.0,94992.0,0.01761689]
[1746489448951,0.0164,94993.0,94992.0,0.01761689]
[1746489449499,0.0157,94997.0,94995.0,0.01052686]
[1746489450002,0.0157,94997.0,94996.0,0.00231591]
[1746489450169,0.0157,95003.0,94996.0,0.22337562]
[1746489450379,0.0157,95003.0,95001.0,0.21052306]
[1746489450631,0.01052531,95009.0,95005.0,0.21051304]
[1746489450785,0.0313,95007.0,95005.0,0.21051304]
[1746489451147,0.0314,95006.0,95005.0,0.20951304]
[1746489451294,0.0314,95006.0,95005.0,0.19899304]
[1746489452289,0.0314,95006.0,95005.0,0.21424563]
[1746489452494,0.0314,95006.0,95005.0,0.01525259]
[1746489452696,0.0314,95006.0,95003.0,0.21051959]
[1746489452697,0.01152565,95006.0,95003.0,0.21051959]
[1746489452856,0.0161,95004.0,95003.0,0.21051959]
[1746489453456,0.0161,95004.0,95003.0,0.21281999]
[1746489454844,0.0161,95004.0,95003.0,0.0023004]
[1746489455104,0.01052709,94993.0,94984.0,0.21056003]
[1746489455345,0.0414272,94992.0,94988.0,0.2105522]
[1746489455672,0.00210398,94991.0,94988.0,0.2105522]
[1746489455822,0.01861556,94992.0,94990.0,0.21054847]
[1746489456022,0.01651158,94992.0,94990.0,0.21054847]
[1746489456209,0.0309,94991.0,94990.0,0.21054847]
[1746489457072,0.0309,94991.0,94990.0,0.21287768]
[1746489458131,0.0309,94991.0,94990.0,0.21387768]
[1746489458662,0.0309,94991.0,94990.0,0.21487768]
[1746489463175,0.0474114,94991.0,94990.0,0.21487768]
[1746489463985,0.0474114,94991.0,94990.0,0.00432921]
[1746489467908,0.0474114,94991.0,94990.0,0.01961595]
[1746489468116,0.0309,94991.0,94990.0,0.01961595]
[1746489471335,0.0152,94991.0,94990.0,0.01961595]
[1746489472559,0.03171125,94991.0,94990.0,0.01961595]
[1746489475390,0.04751125,94991.0,94990.0,0.01961595]
[1746489480153,0.031,94991.0,94990.0,0.01961595]
[1746489483020,0.04751148,94991.0,94990.0,0.01961595]
[1746489487700,0.01651148,94991.0,94990.0,0.01471547]
[1746489488322,0.04821148,94991.0,94990.0,0.01471547]
[1746489492364,0.03251148,94991.0,94990.0,0.01471547]
[1746489493317,0.016,94991.0,94990.0,0.01471547]
[1746489496408,0.03251131,94991.0,94990.0,0.01471547]
[1746489497401,0.016,94991.0,94990.0,0.01471547]
[1746489498924,0.032,94991.0,94990.0,0.01471547]
[1746489502023,0.04851133,94991.0,94990.0,0.01471547]
[1746489509745,0.032,94991.0,94990.0,0.01471547]
[1746489511341,0.016,94991.0,94990.0,0.01471547]
[1746489512746,0.03251139,94991.0,94990.0,0.01471547]
[1746489517303,0.03251139,94991.0,94990.0,0.00419547]
[1746489517535,0.03251139,94991.0,94990.0,0.01294186]
[1746489517719,0.03251139,94991.0,94990.0,0.00131018]
[1746489518371,0.01651139,94991.0,94988.0,0.01052764]
[1746489518569,0.0155,94990.0,94988.0,0.01052764]
[1746489519280,0.0155,94989.0,94988.0,0.01052764]
[1746489520067,0.02599862,94989.0,94988.0,0.01052764]
[1746489520265,0.02599862,94989.0,94988.0,0.01152764]
[1746489520831,0.02599862,94989.0,94988.0,0.01252764]
[1746489521650,0.02599862,94989.0,94988.0,0.01152764]
[1746489521864,0.02599862,94989.0,94988.0,0.01252764]
[1746489522999,0.04251006,94989.0,94988.0,0.01252764]
[1746489524955,0.04251006,94989.0,94988.0,0.02416306]
[1746489527792,0.04251006,94989.0,94988.0,0.23471597]
[1746489530269,0.02599862,94989.0,94988.0,0.23471597]
[1746489530861,0.02599862,94989.0,94988.0,0.22418833]
[1746489531944,0.02599862,94989.0,94988.0,0.01363542]
[1746489532149,0.04239862,94989.0,94988.0,0.01363542]
[1746489532350,0.05904345,94989.0,94988.0,0.01363542]
[1746489532550,0.05904345,94989.0,94988.0,0.002]
[1746489533129,0.07555558,94989.0,94988.0,0.002]
[1746489535083,0.07555558,94989.0,94988.0,0.001]
[1746489535459,0.01052853,94980.0,94977.0,0.01052886]
[1746489535650,0.0161,94978.0,94977.0,0.01052886]
[1746489536308,0.03261262,94978.0,94977.0,0.01052886]
[1746489536680,0.032658,94978.0,94977.0,0.01152886]
[1746489537114,0.032658,94978.0,94977.0,0.01052886]
[1746489537314,0.032658,94978.0,94977.0,0.01352886]
[1746489537848,0.032658,94978.0,94977.0,0.22410615]
[1746489539363,0.032658,94978.0,94977.0,0.003]
[1746489539819,0.24323308,94978.0,94977.0,0.003]
[1746489540035,0.25823308,94978.0,94977.0,0.003]
[1746489540473,0.24172046,94978.0,94977.0,0.003]
[1746489540821,0.33222014,94978.0,94977.0,0.003]
[1746489541435,0.24172046,94978.0,94977.0,0.003]
[1746489542066,0.24172046,94978.0,94977.0,0.002]
[1746489542365,0.01052964,94970.0,94967.0,0.01052997]
[1746489542584,0.0165,94968.0,94965.0,0.01053019]
[1746489542813,0.22322965,94969.0,94966.0,0.01053008]
[1746489542814,0.0165,94967.0,94966.0,0.01053008]
[1746489543011,0.0165,94967.0,94966.0,0.02236401]
[1746489543267,0.0165,94967.0,94966.0,0.01053008]
[1746489543554,0.03301455,94967.0,94966.0,0.01053008]
[1746489543885,0.03301455,94967.0,94966.0,0.02236937]
[1746489544112,0.03301455,94967.0,94964.0,0.22113462]
[1746489544326,0.03211455,94967.0,94966.0,0.01183929]
[1746489544539,0.22711604,94967.0,94966.0,0.004]
[1746489544742,0.25861604,94967.0,94966.0,0.01584165]
[1746489545815,0.25861604,94967.0,94966.0,0.01884165]
[1746489546252,0.25861604,94967.0,94966.0,0.01584165]
[1746489546474,0.25861604,94967.0,94966.0,0.01884165]
[1746489546681,0.25861604,94967.0,94966.0,0.01484165]
[1746489547119,0.34534937,94967.0,94966.0,0.01484165]
[1746489547333,0.34534937,94967.0,94966.0,0.003]
[1746489547534,0.34534937,94967.0,94966.0,0.006]
[1746489547801,0.32883482,94967.0,94966.0,0.006]
[1746489548013,0.25664234,94967.0,94966.0,0.003]
[1746489548228,0.25664234,94967.0,94966.0,0.006]
[1746489548444,0.25664234,94967.0,94966.0,0.003]
[1746489549115,0.25664234,94967.0,94953.0,0.01053152]
[1746489549116,0.22115355,94957.0,94953.0,0.01053152]
[1746489549332,0.01053119,94956.0,94953.0,0.01053152]
[1746489549573,0.01053119,94956.0,94954.0,0.01114171]
[1746489550944,0.01053119,94956.0,94954.0,0.01814171]
[1746489551374,0.01053074,94960.0,94956.0,0.01053119]
[1746489551920,0.01053063,94961.0,94956.0,0.01053119]
[1746489552121,0.0270478,94960.0,94956.0,0.01053119]
[1746489552353,0.01651706,94960.0,94957.0,0.21062164]
[1746489552549,0.01651706,94960.0,94957.0,0.22115272]
[1746489552748,0.02703296,94960.0,94957.0,0.22115272]
[1746489552985,0.02703296,94960.0,94958.0,0.00138113]
[1746489553993,0.02703296,94960.0,94958.0,0.00438113]
[1746489555705,0.02703296,94960.0,94958.0,0.00638113]
[1746489556957,0.02703296,94960.0,94958.0,0.21700035]
[1746489558177,0.02703296,94960.0,94959.0,0.00974391]
[1746489558373,0.02703296,94960.0,94959.0,0.01112282]
[1746489559493,0.02703296,94960.0,94959.0,0.01312282]
[1746489559635,0.02703296,94960.0,94959.0,0.01612282]
[1746489560242,0.0105159,94960.0,94959.0,0.01612282]
[1746489560443,0.01053041,94963.0,94959.0,0.01612282]
[1746489560851,0.01053041,94963.0,94959.0,0.02665368]
[1746489561063,0.0212903,94963.0,94959.0,0.02665368]
[1746489561379,0.0212903,94963.0,94959.0,0.02465368]
[1746489561580,0.0212903,94963.0,94959.0,0.02565368]
[1746489561985,0.01053052,94962.0,94959.0,0.02565368]
[1746489562385,0.0212903,94963.0,94959.0,0.02565368]
[1746489562967,0.0212903,94963.0,94959.0,0.23226882]
[1746489563158,0.03780705,94963.0,94959.0,0.23426882]
[1746489563391,0.03780705,94963.0,94959.0,0.23626882]
[1746489563689,0.04562256,94963.0,94959.0,0.23626882]
[1746489564477,0.04562256,94963.0,94959.0,0.23426882]
[1746489565015,0.22114108,94962.0,94959.0,0.01312282]
[1746489565363,0.03,94960.0,94959.0,0.01412282]
[1746489565586,0.03210398,94960.0,94959.0,0.01412282]
[1746489565909,0.03210398,94960.0,94959.0,0.01312282]
[1746489566318,0.03,94960.0,94959.0,0.01312282]
[1746489566674,0.03,94960.0,94959.0,0.01512282]
[1746489567101,0.03,94960.0,94959.0,0.01812282]
[1746489567527,0.03,94960.0,94959.0,0.01612282]
[1746489567890,0.03,94960.0,94959.0,0.01812282]
[1746489570110,0.0465171,94960.0,94959.0,0.01812282]
[1746489571208,0.0315171,94960.0,94959.0,0.01812282]
[1746489573925,0.0165171,94960.0,94959.0,0.01812282]
[1746489575259,0.0320171,94960.0,94959.0,0.01812282]
[1746489578475,0.25903209,94960.0,94959.0,0.01812282]
[1746489579995,0.24263209,94960.0,94959.0,0.01812282]
[1746489580195,0.22611499,94960.0,94959.0,0.01812282]
[1746489581784,0.22611499,94960.0,94959.0,0.007]